lending/lending_fUSD_20260310
["ID","MTS","AMOUNT","RATE_DAILY","PERIOD"]
[408090518,1773135047616,-500.0,0.00019862,3]
[408090519,1773135047626,-500.0,0.00019862,4]
[408090520,1773135047635,-500.0,0.00019862,5]
[408090521,1773135047643,-500.0,0.00019862,6]
[408090522,1773135047652,-151.0,0.00019862,2]
[408090523,1773135047662,-151.0,0.00019862,2]
[408090524,1773135047671,-151.0,0.00019862,2]
[408090525,1773135047680,-151.0,0.00019862,2]
[408090526,1773135047689,-151.0,0.00019862,2]
[408090527,1773135047700,-151.0,0.00019862,2]
[408090528,1773135047711,-928.089357,0.00019862,2]
[408090529,1773135047720,-928.089357,0.00019862,2]
[408090530,1773135047729,-928.089357,0.00019862,2]
[408090531,1773135047741,-184.906114,0.00019862,2]
[408090532,1773135047751,-928.089357,0.00019862,2]
[408090533,1773135047759,-184.906114,0.00019862,2]
[408090534,1773135047769,-184.906114,0.00019862,2]
[408090535,1773135047779,-184.906114,0.00019862,2]
[408090536,1773135047789,-1556.177913,0.00019862,2]
[408090537,1773135047802,-1556.177913,0.00019862,2]
[408090538,1773135047814,-1556.177913,0.00019862,2]
[408090539,1773135047823,-1556.177919,0.00019862,2]
[408090540,1773135047834,-389.345317,0.00019862,2]
[408090541,1773135047843,-389.345317,0.00019862,2]
[408090542,1773135047855,-151.0,0.00019862,2]
[408090543,1773135047865,-389.345317,0.00019862,2]
[408090544,1773135047875,-389.345311,0.00019862,2]
[408090545,1773135047884,-150.0,0.00019866,4]
[408090546,1773135047895,-1187.66869625,0.00019869,2]
[408090547,1773135047905,-1364.80601603,0.00019869,2]
[408090548,1773135047915,-826.45947664,0.00019869,2]
[408090549,1773135047926,-150.0,0.00019869,4]
[408090550,1773135047939,-150.0,0.00019869,4]
[408090551,1773135047948,-826.4594766,0.0001987,2]
[408090552,1773135047957,-193.76024039,0.0001987,2]
[408090553,1773135047966,-7247.81426122,0.0001987,2]
[408090554,1773135047976,-150.0,0.0001987,4]
[408090555,1773135047987,-826.4594766,0.0001987,2]
[408090556,1773135047998,-826.4594766,0.00019871,2]
[408090557,1773135048008,-500.0,0.00019871,2]
[408090558,1773135048017,-500.0,0.00019871,2]
[408090559,1773135048027,-545.20030778,0.00019871,2]
[408090560,1773135048036,-500.0,0.00019871,2]
[408090561,1773135048045,-300.0,0.00019871,2]
[408090562,1773135048054,-151.0,0.00019871,2]
[408090563,1773135048063,-151.0,0.00019871,2]
[408090564,1773135048072,-611.761243,0.00019871,2]
[408090565,1773135048081,-151.0,0.00019871,2]
[408090566,1773135048090,-611.761243,0.00019871,2]
[408090567,1773135048100,-611.761243,0.00019871,2]
[408090568,1773135048110,-611.761243,0.00019871,2]
[408090569,1773135048120,-182.697089,0.00019871,2]
[408090570,1773135048129,-182.697089,0.00019871,2]
[408090571,1773135048138,-1340.67337,0.00019871,2]
[408090572,1773135048147,-182.697089,0.00019871,2]
[408090573,1773135048156,-1340.67337,0.00019871,2]
[408090574,1773135048166,-730.561123,0.00019871,2]
[408090575,1773135048175,-182.697089,0.00019871,2]
[408090576,1773135048186,-1340.67337,0.00019871,2]
[408090577,1773135048195,-730.561123,0.00019871,2]
[408090578,1773135048205,-1340.67337,0.00019871,2]
[408090579,1773135048214,-796.414492,0.00019871,2]
[408090580,1773135048223,-730.561123,0.00019871,2]
[408090581,1773135048232,-796.414492,0.00019871,2]
[408090582,1773135048241,-730.561123,0.00019871,2]
[408090583,1773135048250,-796.414492,0.00019871,2]
[408090584,1773135048260,-796.414492,0.00019871,2]
[408090585,1773135048268,-2086.881229,0.00019871,2]
[408090586,1773135048277,-2086.881229,0.00019871,2]
[408090587,1773135048287,-2086.881229,0.00019871,2]
[408090588,1773135048295,-2086.881229,0.00019871,2]
[408090589,1773135048304,-5037.764406,0.00019871,2]
[408090590,1773135048314,-5037.764406,0.00019871,2]
[408090591,1773135048323,-5037.764406,0.00019871,2]
[408090592,1773135048332,-5037.764406,0.00019871,2]
[408090593,1773135048341,-239.020003,0.00019871,2]
[408090594,1773135048350,-239.020003,0.00019871,2]
[408090595,1773135048359,-239.020003,0.00019871,2]
[408090596,1773135048369,-239.020003,0.00019871,2]
[408090597,1773135048379,-151.0,0.00019871,2]
[408090598,1773135048389,-151.0,0.00019871,2]
[408090599,1773135048398,-177.9015,0.00019871,2]
[408090600,1773135048408,-177.9015,0.00019871,2]
[408090601,1773135048416,-177.9015,0.00019871,2]
[408090602,1773135048425,-222.950142,0.00019871,2]
[408090603,1773135048435,-177.90150649,0.00019871,2]
[408090604,1773135048444,-480.307624,0.00019871,2]
[408090605,1773135048454,-222.950142,0.00019871,2]
[408090606,1773135048463,-480.307624,0.00019871,2]
[408090607,1773135048478,-222.950142,0.00019871,2]
[408090608,1773135048487,-480.307624,0.00019871,2]
[408090609,1773135048497,-222.950142,0.00019871,2]
[408090610,1773135048506,-280.734468,0.00019871,2]
[408090611,1773135048516,-480.307614,0.00019871,2]
[408090612,1773135048526,-280.734468,0.00019871,2]
[408090613,1773135048537,-151.0,0.00019871,2]
[408090614,1773135048549,-280.734468,0.00019871,2]
[408090615,1773135048558,-151.0,0.00019871,2]
[408090616,1773135048567,-280.73446,0.00019871,2]
[408090617,1773135048578,-151.0,0.00019871,2]
[408090618,1773135048587,-341.84545,0.00019871,2]
[408090619,1773135048597,-341.84545,0.00019871,2]
[408090620,1773135048606,-4124.192072,0.00019871,2]
[408090621,1773135048616,-341.84545,0.00019871,2]
[408090622,1773135048627,-4124.192072,0.00019871,2]
[408090623,1773135048636,-341.845456,0.00019871,2]
[408090624,1773135048646,-4124.192072,0.00019871,2]
[408090625,1773135048655,-4124.192069,0.00019871,2]
[408090626,1773135048664,-151.0,0.00019871,2]
[408090627,1773135048674,-381.697716,0.00019871,2]
[408090628,1773135048683,-381.697716,0.00019871,2]
[408090629,1773135048714,-381.697716,0.00019871,2]
[408090630,1773135048730,-381.697708,0.00019871,2]
[408090631,1773135048752,-151.0,0.00019871,2]
[408090632,1773135048769,-327.618865,0.00019871,2]
[408090633,1773135048784,-327.618865,0.00019871,2]
[408090634,1773135048801,-150.0,0.00019871,4]
[408090635,1773135048820,-826.4594766,0.00019871,2]
[408090636,1773135048838,-310.24933161,0.00019872,2]
[408090637,1773135048857,-150.0,0.00019872,4]
[408090638,1773135048874,-174.99011452,0.00019872,2]
[408090639,1773135048897,-500.0,0.00019872,2]
[408090640,1773135048916,-500.0,0.00019872,2]
[408090641,1773135048929,-500.0,0.00019872,2]
[408090642,1773135048947,-500.0,0.00019872,2]
[408090643,1773135048959,-500.0,0.00019872,2]
[408090644,1773135048979,-500.0,0.00019872,2]
[408090645,1773135049000,-500.0,0.00019872,2]
[408090646,1773135049016,-500.0,0.00019872,2]
[408090647,1773135049032,-500.0,0.00019872,2]
[408090648,1773135049051,-500.0,0.00019872,2]
[408090649,1773135049069,-500.0,0.00019872,2]
[408090650,1773135049088,-500.0,0.00019872,2]
[408090651,1773135049114,-500.0,0.00019872,2]
[408090652,1773135049131,-500.0,0.00019872,2]
[408090653,1773135049146,-500.0,0.00019872,2]
[408090654,1773135049163,-500.0,0.00019872,2]
[408090655,1773135049179,-500.0,0.00019872,2]
[408090656,1773135049195,-500.0,0.00019872,2]
[408090657,1773135049210,-500.0,0.00019872,2]
[408090658,1773135049225,-500.0,0.00019872,2]
[408090659,1773135049239,-500.0,0.00019872,2]
[408090660,1773135049254,-500.0,0.00019872,2]
[408090661,1773135049269,-500.0,0.00019872,2]
[408090662,1773135049285,-500.0,0.00019872,2]
[408090663,1773135049300,-500.0,0.00019872,2]
[408090664,1773135049315,-500.0,0.00019872,2]
[408090665,1773135049330,-500.0,0.00019872,2]
[408090666,1773135049346,-500.0,0.00019872,2]
[408090667,1773135049362,-500.0,0.00019872,2]
[408090668,1773135049379,-500.0,0.00019872,2]
[408090669,1773135049394,-500.0,0.00019872,2]
[408090670,1773135049410,-500.0,0.00019872,2]
[408090671,1773135049426,-500.0,0.00019872,2]
[408090672,1773135049441,-500.0,0.00019872,2]
[408090673,1773135049459,-500.0,0.00019872,2]
[408090674,1773135049475,-500.0,0.00019872,2]
[408090675,1773135049490,-500.0,0.00019872,2]
[408090676,1773135049506,-195.10815403,0.00019872,2]
[408090677,1773135049522,-151.0,0.00019872,2]
[408090678,1773135049538,-151.0,0.00019872,2]
[408090679,1773135049554,-151.0,0.00019872,2]
[408090680,1773135049568,-151.0,0.00019872,2]
[408090681,1773135049584,-151.0,0.00019872,2]
[408090682,1773135049599,-151.0,0.00019872,2]
[408090683,1773135049615,-151.0,0.00019872,2]
[408090684,1773135049630,-151.0,0.00019872,2]
[408090685,1773135049651,-151.0,0.00019872,2]
[408090686,1773135049665,-154.683502,0.00019872,2]
[408090687,1773135049680,-928.089357,0.00019872,2]
[408090688,1773135049694,-928.089357,0.00019872,2]
[408090689,1773135049712,-928.089357,0.00019872,2]
[408090690,1773135049726,-184.906114,0.00019872,2]
[408090691,1773135049743,-928.089357,0.00019872,2]
[408090692,1773135049758,-184.906114,0.00019872,2]
[408090693,1773135049774,-184.906114,0.00019872,2]
[408090694,1773135049789,-184.906114,0.00019872,2]
[408090695,1773135049803,-151.0,0.00019872,2]
[408090696,1773135049817,-151.0,0.00019872,2]
[408090697,1773135049832,-151.0,0.00019872,2]
[408090698,1773135049846,-151.0,0.00019872,2]
[408090699,1773135049860,-151.0,0.00019872,2]
[408090700,1773135049875,-185.80436,0.00019872,2]
[408090701,1773135049889,-185.80436,0.00019872,2]
[408090702,1773135049903,-185.80436,0.00019872,2]
[408090703,1773135049917,-185.80436,0.00019872,2]
[408090704,1773135049932,-151.0,0.00019872,2]
[408090705,1773135049946,-202.838684,0.00019872,2]
[408090706,1773135049960,-202.838684,0.00019872,2]
[408090707,1773135049974,-202.838684,0.00019872,2]
[408090708,1773135049988,-202.838684,0.00019872,2]
[408090709,1773135050003,-303.846835,0.00019872,2]
[408090710,1773135050017,-303.846835,0.00019872,2]
[408090711,1773135050032,-303.846835,0.00019872,2]
[408090712,1773135050046,-303.846835,0.00019872,2]
[408090713,1773135050061,-574.893454,0.00019872,2]
[408090714,1773135050076,-574.893454,0.00019872,2]
[408090715,1773135050091,-574.893454,0.00019872,2]
[408090716,1773135050105,-151.0,0.00019872,2]
[408090717,1773135050120,-574.893454,0.00019872,2]
[408090718,1773135050136,-151.0,0.00019872,2]
[408090719,1773135050152,-151.0,0.00019872,2]
[408090720,1773135050166,-151.0,0.00019872,2]
[408090721,1773135050181,-151.0,0.00019872,2]
[408090722,1773135050197,-165.827572,0.00019872,2]
[408090723,1773135050212,-151.0,0.00019872,2]
[408090724,1773135050227,-151.0,0.00019872,2]
[408090725,1773135050243,-969.980716,0.00019872,2]
[408090726,1773135050258,-337.411131,0.00019872,2]
[408090727,1773135050273,-969.980716,0.00019872,2]
[408090728,1773135050288,-1489.237899,0.00019872,2]
[408090729,1773135050303,-167.9598,0.00019872,2]
[408090730,1773135050318,-337.411131,0.00019872,2]
[408090731,1773135050333,-969.980716,0.00019872,2]
[408090732,1773135050348,-1489.237899,0.00019872,2]
[408090733,1773135050363,-969.980716,0.00019872,2]
[408090734,1773135050378,-337.411131,0.00019872,2]
[408090735,1773135050393,-1489.237899,0.00019872,2]
[408090736,1773135050407,-337.411131,0.00019872,2]
[408090737,1773135050423,-151.0,0.00019872,2]
[408090738,1773135050437,-1489.237899,0.00019872,2]
[408090739,1773135050452,-151.0,0.00019872,2]
[408090740,1773135050467,-674.63742,0.00019872,2]
[408090741,1773135050482,-674.63742,0.00019872,2]
[408090742,1773135050497,-674.63742,0.00019872,2]
[408090743,1773135050513,-674.63742,0.00019872,2]
[408090744,1773135050527,-826.4594766,0.00019872,2]
[408090745,1773135050541,-500.0,0.00019873,2]
[408090746,1773135050556,-500.0,0.00019873,2]
[408090747,1773135050571,-581.99073604,0.00019873,2]
[408090748,1773135050585,-500.0,0.00019873,2]
[408090749,1773135050600,-500.0,0.00019873,2]
[408090750,1773135050615,-500.0,0.00019873,2]
[408090751,1773135050629,-500.0,0.00019873,2]
[408090752,1773135050643,-500.0,0.00019873,2]
[408090753,1773135050658,-150.0,0.00019873,4]
[408090754,1773135050673,-150.0,0.00019877,4]
[408090755,1773135050687,-150.0,0.00019877,4]
[408090756,1773135050707,-150.0,0.00019877,4]
[408090757,1773135050722,-150.0,0.00019878,4]
[408090758,1773135050736,-150.0,0.0001988,4]
[408090759,1773135050751,-150.0,0.00019881,4]
[408090760,1773135050766,-500.0,0.00019881,2]
[408090761,1773135051006,-1101.84532184,0.00019881,5]
[408090762,1773135051113,-150.0,0.00019882,4]
[408090763,1773135051129,-150.0,0.00019882,4]
[408090764,1773135051139,-507.27777235,0.00019882,2]
[408090765,1773135051149,-514.78454423,0.00019882,2]
[408090766,1773135051159,-500.0,0.00019882,2]
[408090767,1773135051169,-500.0,0.00019882,2]
[408090768,1773135051178,-500.0,0.00019882,2]
[408090769,1773135051188,-151.0,0.00019882,2]
[408090770,1773135051198,-151.0,0.00019882,2]
[408090771,1773135051208,-151.0,0.00019882,2]
[408090772,1773135051218,-611.761243,0.00019882,2]
[408090773,1773135051227,-151.0,0.00019882,2]
[408090774,1773135051236,-611.761243,0.00019882,2]
[408090775,1773135051246,-12.27225335,0.00019882,2]
[408090776,1773135052101,-327.618865,0.00019626,2]
[408090777,1773135052111,-494.05491909,0.00019882,2]
[408090778,1773135052147,-327.618865,0.00019691,2]
[408090779,1773135052156,-327.618865,0.00019813,2]
[408090780,1773135052166,-327.618865,0.00019871,2]
[408090781,1773135052176,-105.43407056,0.00019882,2]
[408090782,1773135052186,-611.76124,0.00019882,2]
[408090783,1773135052195,-166.87209444,0.00019882,2]
[408090784,1773135052207,-15.82499456,0.00019882,2]
[408090785,1773135052217,-182.697089,0.00019882,2]
[408090786,1773135052226,-1340.67337,0.00019882,2]
[408090787,1773135052235,-182.697089,0.00019882,2]
[408090788,1773135052244,-198.19046778,0.00019882,2]
[408090789,1773135102547,592.02,0.000145,2]
[408090790,1773135237041,-390.69030244,0.00015,30]
[408090791,1773135237067,-300.0,0.00016437,2]
[408090792,1773135237094,-300.0,0.00016437,2]
[408090793,1773135243044,-300.0,0.00016437,2]
[408090794,1773135243072,-737.08,0.00016438,2]
[408090795,1773135249094,-2074.16,0.00016438,2]
[408090796,1773135276604,500.0,0.000145,2]
[408090797,1773135292827,500.0,0.000145,2]
[408090798,1773135367530,156.29,0.00013982,2]
[408090850,1773136231625,-300.0,0.00016437,2]
[408090851,1773136231636,-1200.0,0.00016437,2]
[408090852,1773136231647,-288.0,0.00016437,2]
[408090853,1773136231657,-2109.10822967,0.00016438,2]
[408090854,1773136231772,-1436.69177033,0.00016438,2]
[408090855,1773136231785,-3545.8,0.00016438,2]
[408090857,1773136231794,-3545.8,0.00016438,2]
[408090858,1773136231803,-3545.8,0.00016438,2]
[408090859,1773136231813,-3545.8,0.00016438,2]
[408090860,1773136231823,-3545.8,0.00016438,2]
[408090861,1773136231832,-3545.8,0.00016438,2]
[408090863,1773136231841,-3545.8,0.00016438,2]
[408090865,1773136231851,-3545.8,0.00016438,2]
[408090867,1773136231860,-3545.8,0.00016438,2]
[408090869,1773136231869,-3545.8,0.00016438,2]
[408090872,1773136231879,-3545.8,0.00016438,2]
[408090875,1773136231888,-3545.8,0.00016438,2]
[408090878,1773136231897,-3545.8,0.00016438,2]
[408090881,1773136231907,-3545.8,0.00016438,2]
[408090885,1773136231916,-3545.8,0.00016438,2]
[408090888,1773136231926,-3545.8,0.00016438,2]
[408090891,1773136231935,-3545.8,0.00016438,2]
[408090894,1773136231944,-3545.8,0.00016438,2]
[408090896,1773136231953,-3545.8,0.00016438,2]
[408090897,1773136231962,-3545.8,0.00016438,2]
[408090898,1773136231971,-3545.8,0.00016438,2]
[408090899,1773136231981,-3545.8,0.00016438,2]
[408090900,1773136231990,-3545.82865462,0.00016438,2]
[408090901,1773136231999,-250.0,0.00016491,2]
[408090902,1773136232008,-339.61176378,0.00016544,2]
[408090903,1773136232019,-2160.38823622,0.00016544,2]
[408090904,1773136232030,-623.01644225,0.00016544,2]
[408090905,1773136232055,-558.17928043,0.00016544,2]
[408090908,1773136237626,-1318.80427732,0.00016544,2]
[408090909,1773136237637,-2500.0,0.00016544,2]
[408090910,1773136237646,-2500.0,0.00016544,2]
[408090911,1773136237656,-4304.56502993,0.00016598,2]
[408090912,1773136237665,-250.0,0.00016642,2]
[408090913,1773136237676,-152.828631,0.00016792,7]
[408090914,1773136237686,-504.0,0.00017,2]
[408090915,1773136237695,-25835.8601,0.00017463,2]
[408090916,1773136237704,-500.0,0.00017517,2]
[408090917,1773136237714,-500.0,0.00017517,2]
[408090918,1773136237723,-500.0,0.00017517,2]
[408090919,1773136237732,-500.0,0.00017517,2]
[408090920,1773136237742,-500.0,0.00017517,2]
[408090921,1773136237752,-500.0,0.00017517,2]
[408090922,1773136237762,-500.0,0.00017517,2]
[408090923,1773136237772,-500.0,0.00017517,2]
[408090924,1773136237783,-500.0,0.00017517,2]
[408090925,1773136237792,-500.0,0.00017517,2]
[408090926,1773136237802,-200.0,0.00017517,2]
[408090927,1773136237812,-500.0,0.00017517,2]
[408090928,1773136237823,-500.0,0.00017517,2]
[408090929,1773136237834,-500.0,0.00017517,2]
[408090930,1773136237844,-500.0,0.00017517,2]
[408090931,1773136237854,-151.0,0.00017517,2]
[408090932,1773136237863,-151.0,0.00017517,2]
[408090933,1773136237873,-500.0,0.00017517,2]
[408090934,1773136237882,-500.0,0.00017517,2]
[408090935,1773136237892,-151.0,0.00017517,2]
[408090937,1773136237902,-500.0,0.00017517,2]
[408090938,1773136237911,-151.0,0.00017517,2]
[408090939,1773136237921,-500.0,0.00017517,2]
[408090940,1773136237934,-151.0,0.00017517,2]
[408090941,1773136237943,-500.0,0.00017517,2]
[408090942,1773136237952,-151.0,0.00017517,2]
[408090943,1773136237962,-500.0,0.00017517,2]
[408090945,1773136237971,-500.0,0.00017517,2]
[408090946,1773136237980,-151.0,0.00017517,2]
[408090947,1773136237990,-500.0,0.00017517,2]
[408090948,1773136237999,-151.0,0.00017517,2]
[408090949,1773136238008,-500.0,0.00017517,2]
[408090950,1773136238018,-151.0,0.00017517,2]
[408090952,1773136238027,-151.0,0.00017517,2]
[408090953,1773136238041,-500.0,0.00017517,2]
[408090954,1773136238050,-151.0,0.00017517,2]
[408090956,1773136238059,-151.0,0.00017517,2]
[408090958,1773136238069,-151.0,0.00017517,2]
[408090960,1773136238079,-500.0,0.00017517,2]
[408090962,1773136238088,-151.0,0.00017517,2]
[408090964,1773136238098,-500.0,0.00017517,2]
[408090966,1773136238109,-151.0,0.00017517,2]
[408090968,1773136238119,-151.0,0.00017517,2]
[408090969,1773136238128,-151.0,0.00017517,2]
[408090972,1773136238141,-151.0,0.00017517,2]
[408090974,1773136238151,-151.0,0.00017517,2]
[408090976,1773136238160,-151.0,0.00017517,2]
[408090978,1773136238170,-151.0,0.00017517,2]
[408090980,1773136238179,-151.0,0.00017517,2]
[408090982,1773136238189,-151.0,0.00017517,2]
[408090984,1773136238198,-151.0,0.00017517,2]
[408090997,1773136238513,-151.0,0.00017517,2]
[408090998,1773136238639,-151.0,0.00017517,2]
[408090999,1773136238650,-151.0,0.00017517,2]
[408091000,1773136238661,-151.0,0.00017517,2]
[408091001,1773136238671,-151.0,0.00017517,2]
[408091002,1773136238682,-151.0,0.00017517,2]
[408091003,1773136238692,-151.0,0.00017517,2]
[408091004,1773136238702,-151.0,0.00017517,2]
[408091005,1773136238712,-151.0,0.00017517,2]
[408091006,1773136238722,-33218.56916711,0.00017528,2]
[408091007,1773136238731,-329.73,0.00017566,2]
[408091008,1773136238740,-332.601802,0.00017578,7]
[408091009,1773136238749,-500.0,0.00017589,2]
[408091010,1773136238759,-200.0,0.00017675,2]
[408091011,1773136238768,-1600.0,0.00017704,2]
[408091012,1773136238778,-6695.73,0.00017704,2]
[408091013,1773136238788,-420.0,0.00017963,2]
[408091014,1773136238798,-8361.84426845,0.00017974,2]
[408091015,1773136238810,-1680.0,0.00018053,2]
[408091016,1773136238819,-200.0,0.00018065,2]
[408091017,1773136238828,-2773.74987181,0.00018081,2]
[408091018,1773136238840,-2500.0,0.00018081,2]
[408091019,1773136238849,-250.0,0.00018081,2]
[408091020,1773136238859,-200.0,0.00018156,2]
[408091021,1773136238868,-500.0,0.00018238,7]
[408091022,1773136238877,-500.0,0.00018238,7]
[408091023,1773136238887,-500.0,0.00018238,7]
[408091024,1773136238896,-500.0,0.00018503,2]
[408091025,1773136238907,-12433.67,0.00018688,2]
[408091026,1773136238916,-504.0,0.00018703,3]
[408091027,1773136238926,-1667.60653456,0.00018762,2]
[408091028,1773136238937,-151.25613122,0.00018762,2]
[408091029,1773136238947,-1000.0,0.00018762,2]
[408091030,1773136238956,-773.53910208,0.00018762,2]
[408091031,1773136238965,-599.60298507,0.00018762,2]
[408091032,1773136238975,-500.0,0.00018762,2]
[408091033,1773136238984,-743.50770149,0.00018762,2]
[408091034,1773136238994,-174.61919141,0.00018762,2]
[408091035,1773136239003,-151.0,0.00018762,2]
[408091036,1773136239012,-295.53300002,0.00018762,2]
[408091037,1773136239021,-282.71673119,0.00018762,2]
[408091038,1773136239032,-172.91703981,0.00018776,2]
[408091039,1773136239045,-484.79,0.00018841,2]
[408091040,1773136239054,-500.0,0.00018856,2]
[408091041,1773136239064,-3698.3016228,0.00018856,2]
[408091042,1773136239073,-500.0,0.00018911,2]
[408091043,1773136239083,-2627.30640656,0.00018941,2]
[408091044,1773136240003,-434.74440485,0.00018941,2]
[408091045,1773136240028,-3221.20647374,0.00018941,2]
[408091046,1773136240042,-300.01,0.00018966,2]
[408091047,1773136240052,-150.0,0.00018975,2]
[408091048,1773136240062,-2500.0,0.00019033,2]
[408091049,1773136240072,-14521.88850842,0.00019041,2]
[408091050,1773136240083,-3012.9651371,0.00019044,2]
[408091051,1773136240099,-3270.29214805,0.00019044,2]
[408091052,1773136240110,-556.77,0.00019106,2]
[408091053,1773136240120,-14521.8885084,0.00019133,2]
[408091054,1773136240129,-155.0,0.0001914,2]
[408091055,1773136240139,-17061.04934355,0.00019141,2]
[408091056,1773136240221,-925.35284113,0.00019141,2]
[408091057,1773136240240,-155212.71794192,0.00019141,2]
[408091058,1773136240249,-39816.4411839,0.00019141,2]
[408091059,1773136240258,-2053.0144709,0.00019141,2]
[408091060,1773136240267,-6283.25728515,0.00019148,2]
[408091061,1773136240277,-250.0,0.00019178,2]
[408091062,1773136240286,-787.0,0.00019178,2]
[408091063,1773136240295,-2000.0,0.000192,2]
[408091064,1773136240305,-1000.0,0.00019242,2]
[408091065,1773136240314,-1717.68227302,0.00019246,2]
[408091066,1773136240323,-6283.25728515,0.00019251,2]
[408091067,1773136240333,-154.80186,0.000193,2]
[408091068,1773136240342,-1000.0,0.0001931,2]
[408091069,1773136240352,-869.39421668,0.0001931,2]
[408091070,1773136240362,-282.65723169,0.0001931,2]
[408091071,1773136240371,-500.0,0.00019313,2]
[408091072,1773136240380,-500.0,0.00019334,7]
[408091073,1773136240390,-8639.76332203,0.00019349,4]
[408091074,1773136240400,-6283.25728515,0.00019355,2]
[408091075,1773136240409,-6283.25728515,0.00019458,2]
[408091076,1773136240424,-151.0,0.00019495,2]
[408091077,1773136240433,-151.0,0.00019495,2]
[408091078,1773136240443,-151.0,0.00019495,2]
[408091079,1773136240452,-151.0,0.00019495,2]
[408091080,1773136240461,-151.0,0.00019495,2]
[408091081,1773136240471,-151.0,0.00019495,2]
[408091082,1773136240481,-151.0,0.00019495,2]
[408091083,1773136240491,-151.0,0.00019495,2]
[408091084,1773136240501,-1252.128738,0.00019495,2]
[408091085,1773136240512,-1252.128738,0.00019495,2]
[408091086,1773136240521,-155.738127,0.00019495,2]
[408091087,1773136240531,-1252.128738,0.00019495,2]
[408091088,1773136240541,-155.738127,0.00019495,2]
[408091089,1773136240550,-1252.128738,0.00019495,2]
[408091090,1773136240560,-155.738127,0.00019495,2]
[408091091,1773136240569,-155.738127,0.00019495,2]
[408091092,1773136240579,-151.0,0.00019495,2]
[408091094,1773136240589,-151.0,0.00019495,2]
[408091095,1773136240598,-151.0,0.00019495,2]
[408091097,1773136240609,-151.0,0.00019495,2]
[408091098,1773136240618,-151.0,0.00019495,2]
[408091100,1773136240627,-14069.01866866,0.00019495,2]
[408091102,1773136240636,-490.16137194,0.00019502,2]
[408091103,1773136240645,-433.6846762,0.00019502,2]
[408091105,1773136240654,-151.0,0.00019503,2]
[408091107,1773136240663,-151.0,0.00019503,2]
[408091108,1773136240673,-151.0,0.00019503,2]
[408091109,1773136240683,-151.0,0.00019503,2]
[408091110,1773136240694,-151.0,0.00019503,2]
[408091111,1773136240703,-292.649312,0.00019503,2]
[408091112,1773136240712,-349.193058,0.00019503,2]
[408091113,1773136240722,-151.0,0.00019503,2]
[408091114,1773136240731,-151.0,0.00019503,2]
[408091115,1773136240740,-349.193058,0.00019503,2]
[408091116,1773136240749,-151.0,0.00019503,2]
[408091117,1773136240759,-349.193058,0.00019503,2]
[408091118,1773136240769,-595.69516,0.00019503,2]
[408091119,1773136240778,-151.0,0.00019503,2]
[408091120,1773136240789,-595.69516,0.00019503,2]
[408091121,1773136240799,-349.193058,0.00019503,2]
[408091122,1773136240808,-151.0,0.00019503,2]
[408091123,1773136240817,-151.0,0.00019503,2]
[408091124,1773136240826,-595.69516,0.00019503,2]
[408091125,1773136240835,-595.69516,0.00019503,2]
[408091126,1773136240845,-154.532111,0.00019503,2]
[408091127,1773136240854,-151.0,0.00019503,2]
[408091128,1773136240863,-269.854968,0.00019503,2]
[408091129,1773136240873,-269.854968,0.00019503,2]